bitfinex/quotes_SOLUSD_20220208
["timestamp","ask_amount","ask_price","bid_price","bid_amount"]
[1644294803925,59.32268533,118.45,118.37,46.78124013]
[1644294804424,59.32268533,118.45,118.37,47.03124013]
[1644294804624,56.73421595,118.45,118.37,47.03124013]
[1644294805222,56.73421595,118.45,118.35,36.5242596]
[1644294805223,56.73421595,118.45,118.35,24.2642596]
[1644294805422,58.86426925,118.45,118.35,24.2642596]
[1644294806224,58.86426925,118.45,118.35,1.5169596]
[1644294806426,12.26,118.44,118.35,1.5169596]
[1644294806623,12.26,118.44,118.35,48.18607328]
[1644294806624,12.6773,118.42,118.35,48.18607328]
[1644294806823,34.80199364,118.41,118.35,48.18607328]
[1644294807425,34.80199364,118.41,118.35,1.5169596]
[1644294808627,35.05199364,118.41,118.35,1.5169596]
[1644294808827,47.72719364,118.41,118.35,1.5169596]
[1644294810026,14.7152173,118.4,118.35,1.5169596]
[1644294810229,12.681,118.39,118.35,1.5169596]
[1644294811025,41.89331324,118.38,118.35,1.5169596]
[1644294811226,12.6799,118.37,118.35,1.5169596]
[1644294811925,41.89331324,118.38,118.35,1.5169596]
[1644294812926,68.21985691,118.42,118.35,1.5169596]
[1644294812927,80.47985691,118.42,118.35,1.5169596]
[1644294813126,3.177529,118.41,118.35,1.5169596]
[1644294814028,41.7999597,118.4,118.39,1.5169596]
[1644294814426,54.4767597,118.4,118.39,1.15569125]
[1644294817731,54.7267597,118.4,118.39,1.15569125]
[1644294819858,67.3065947,118.4,118.39,1.15569125]
[1644294820057,54.7267597,118.4,118.39,1.15569125]
[1644294822760,54.4767597,118.4,118.39,1.15569125]
[1644294823661,54.4767597,118.4,118.34,46.09698054]
[1644294823861,54.4767597,118.4,118.3,12.6757]
[1644294824062,54.4767597,118.4,118.31,24.4865]
[1644294824262,54.7267597,118.4,118.31,24.7365]
[1644294824463,54.7267597,118.4,118.31,24.4865]
[1644294824965,54.7267597,118.4,118.32,47.70188588]
[1644294825664,54.4767597,118.4,118.32,47.70188588]
[1644294825864,54.4767597,118.4,118.32,47.95188588]
[1644294826764,41.7999597,118.4,118.32,47.95188588]
[1644294826968,41.7999597,118.4,118.32,66.62638588]
[1644294828268,42.0499597,118.4,118.32,53.95188588]
[1644294828566,54.7257597,118.4,118.32,53.95188588]
[1644294828767,54.7257597,118.4,118.32,6.25]
[1644294828967,54.7257597,118.4,118.32,0.25]
[1644294829166,54.7257597,118.4,118.32,6.25]
[1644294829366,54.7257597,118.4,118.32,6.0]
[1644294829567,54.7257597,118.4,118.32,0.25]
[1644294830669,54.7257597,118.4,118.31,69.5537401]
[1644294832969,54.7257597,118.4,118.31,24.4865]
[1644294833269,59.25916991,118.4,118.31,24.4865]
[1644294833769,54.7257597,118.4,118.31,24.7365]
[1644294834168,54.7257597,118.4,118.29,24.3582]
[1644294834369,82.08231661,118.4,118.29,24.3582]
[1644294834770,84.21236991,118.4,118.27,23.8513]
[1644294834971,12.26,118.39,118.27,23.8513]
[1644294835171,39.99222984,118.35,118.27,67.73753483]
[1644294835571,39.99222984,118.35,118.26,0.024]
[1644294835770,42.12228314,118.35,118.25,0.024]
[1644294835972,39.99222984,118.35,118.23,35.6557]
[1644294836173,39.99222984,118.35,118.24,0.024]
[1644294836570,39.99222984,118.35,118.24,38.87386703]
[1644294836770,12.683,118.33,118.25,0.024]
[1644294836970,44.3998369,118.32,118.25,0.024]
[1644294838373,57.0847369,118.32,118.25,0.024]
[1644294839074,57.3347369,118.32,118.25,0.024]
[1644294853189,56.1790457,118.32,118.25,0.024]
[1644294853490,55.9290457,118.32,118.25,0.024]
[1644294853706,12.6849,118.32,118.25,0.024]
[1644294853907,12.6828,118.33,118.25,1.72096037]
[1644294854106,12.6828,118.33,118.26,0.024]
[1644294854506,24.7353,118.37,118.26,1.72096037]
[1644294854708,45.3957618,118.36,118.27,42.71850575]
[1644294854907,45.3957618,118.36,118.29,47.44474563]
[1644294855306,45.3957618,118.36,118.29,47.69474563]
[1644294855506,65.8229,118.39,118.29,47.69474563]
[1644294855706,2.40335691,118.41,118.3,23.9079]
[1644294855906,2.40335691,118.41,118.3,60.3361]
[1644294855907,12.6774,118.38,118.3,60.3361]
[1644294856107,12.6774,118.38,118.3,49.35586037]
[1644294856309,12.6774,118.38,118.3,47.6589]
[1644294856505,46.41058294,118.37,118.3,47.6589]
[1644294856705,12.579811,118.36,118.26,6.024]
[1644294856906,12.6807,118.35,118.27,23.2083]
[1644294857408,12.9307,118.35,118.27,23.2083]
[1644294857808,36.90824407,118.34,118.27,23.2083]
[1644294858211,39.31284876,118.31,118.27,23.2083]
[1644294858415,39.31284876,118.31,118.26,0.024]
[1644294858610,39.31284876,118.31,118.25,24.0564]
[1644294859310,39.31284876,118.31,118.25,63.80915666]
[1644294859712,12.6862,118.3,118.25,63.80915666]
[1644294861813,12.6847,118.31,118.25,63.80915666]
[1644294862012,12.6847,118.31,118.25,64.05915666]
[1644294864216,12.9347,118.31,118.25,64.05915666]
[1644294865117,0.25,118.31,118.25,64.05915666]
[1644294865320,12.6838,118.32,118.25,64.05915666]
[1644294865517,12.6838,118.32,118.26,0.024]
[1644294866718,52.80269574,118.32,118.26,0.024]
[1644294867718,52.80269574,118.32,118.25,63.78515666]
[1644294867920,52.80269574,118.32,118.26,0.024]
[1644294869116,53.05269574,118.32,118.26,0.024]
[1644294870422,12.9338,118.32,118.26,0.024]
[1644294870620,12.6827,118.33,118.26,0.024]
[1644294870821,22.6185,118.35,118.26,1.72096037]
[1644294871224,22.6185,118.35,118.26,7.97096037]
[1644294871424,38.24935308,118.34,118.27,37.83558637]
[1644294871823,38.24935308,118.34,118.27,38.08558637]
[1644294872025,38.49935308,118.34,118.27,38.08558637]
[1644294872229,38.49935308,118.34,118.27,37.83558637]
[1644294872628,51.18095308,118.34,118.27,37.83558637]
[1644294872829,51.18095308,118.34,118.27,39.78254674]
[1644294874329,51.18095308,118.34,118.27,39.53254674]
[1644294875028,51.18095308,118.34,118.27,37.83558637]
[1644294881136,12.9316,118.34,118.27,37.83558637]
[1644294882632,12.6816,118.34,118.27,37.83558637]
[1644294882833,12.6816,118.34,118.27,38.08558637]
[1644294883635,56.66229711,118.34,118.27,38.08558637]
[1644294883835,12.6816,118.34,118.27,38.08558637]
[1644294884734,12.6816,118.34,118.27,50.76658637]
[1644294885335,12.6816,118.34,118.27,52.46760709]
[1644294885835,12.6816,118.34,118.27,39.78660709]
[1644294886236,12.9316,118.34,118.27,39.78660709]
[1644294887736,12.9316,118.34,118.27,52.46780709]
[1644294889636,12.9316,118.34,118.27,58.46780709]
[1644294890142,12.9316,118.34,118.27,52.46780709]
[1644294890339,12.9316,118.34,118.27,39.78660709]
[1644294893544,12.9316,118.34,118.27,45.78660709]
[1644294893748,12.9316,118.34,118.27,39.78660709]
[1644294895465,39.75264169,118.33,118.27,39.78660709]
[1644294895665,39.75264169,118.33,118.27,38.08558637]
[1644294896465,52.43474169,118.33,118.27,38.08558637]
[1644294898169,12.6821,118.33,118.27,38.08558637]
[1644294899971,40.20145804,118.32,118.27,38.08558637]
[1644294900472,52.88455804,118.32,118.27,0.25]
[1644294900670,52.88455804,118.32,118.26,0.024]
[1644294905087,53.13455804,118.32,118.26,0.024]
[1644294911701,52.88455804,118.32,118.26,0.024]
[1644294911899,12.6831,118.32,118.26,0.024]
[1644294912502,12.6831,118.32,118.3,1.3171684]
[1644294913104,12.9331,118.32,118.3,1.3171684]
[1644294914123,12.6831,118.32,118.3,1.3171684]
[1644294914328,12.6831,118.32,118.31,6.06439994]
[1644294915522,12.6831,118.32,118.3,1.3171684]
[1644294916225,12.9331,118.32,118.3,1.3171684]
[1644294917726,47.72716458,118.32,118.3,1.3171684]
[1644294918226,12.9331,118.32,118.3,1.3171684]
[1644294921433,12.9331,118.32,118.31,6.06439994]
[1644294921634,12.9331,118.32,118.3,1.3171684]
[1644294922634,13.88767294,118.33,118.31,46.21908603]
[1644294922835,1.20547294,118.33,118.31,46.21908603]
[1644294923035,1.20547294,118.34,118.31,46.21908603]
[1644294923235,1.20547294,118.36,118.31,48.16811194]
[1644294923637,1.20547294,118.36,118.33,43.70698619]
[1644294923838,1.20547294,118.37,118.33,43.70698619]
[1644294924239,1.20547294,118.37,118.32,23.2638]
[1644294924840,13.88327294,118.37,118.32,23.2638]
[1644294925241,13.88327294,118.37,118.32,70.63491436]
[1644294925742,13.88327294,118.37,118.32,70.38491436]
[1644294925942,13.88327294,118.37,118.32,23.2638]
[1644294926944,13.88327294,118.37,118.32,62.77916419]
[1644294927845,12.6778,118.37,118.32,62.77916419]
[1644294928846,12.9278,118.37,118.32,62.77916419]
[1644294929652,0.25,118.37,118.32,62.77916419]
[1644294929851,13.88247294,118.38,118.32,63.02916419]
[1644294930749,54.69450912,118.38,118.32,62.77916419]
[1644294931151,54.94450912,118.38,118.32,39.51536419]
[1644294932148,54.94450912,118.38,118.3,24.2094684]
[1644294932373,54.94450912,118.38,118.3,30.2094684]
[1644294932549,54.94450912,118.38,118.3,42.8878684]
[1644294932750,54.94450912,118.38,118.3,36.8878684]
[1644294932951,12.6794,118.36,118.3,24.2094684]
[1644294933150,50.30575032,118.36,118.3,63.57966118]
[1644294936254,50.55575032,118.36,118.3,63.57966118]
[1644294936753,51.76122326,118.36,118.3,63.57966118]
[1644294941759,1.20547294,118.35,118.3,63.57966118]
[1644294941960,12.6818,118.34,118.3,63.57966118]
[1644294942360,58.37427669,118.34,118.3,24.2094684]
[1644294942561,58.37427669,118.34,118.3,1.3171684]
[1644294944167,58.62427669,118.34,118.3,1.3171684]
[1644294944566,12.9318,118.34,118.3,1.3171684]
[1644294945068,12.6818,118.34,118.3,1.3171684]
[1644294945268,1.20547294,118.36,118.3,1.5671684]
[1644294945466,1.20547294,118.36,118.31,40.07472753]
[1644294945667,1.20547294,118.37,118.31,40.07472753]
[1644294946068,39.86470635,118.38,118.31,40.07472753]
[1644294946366,1.20547294,118.37,118.31,40.07472753]
[1644294946568,1.20547294,118.37,118.31,46.07472753]
[1644294946768,1.20547294,118.37,118.31,58.75212753]
[1644294946970,1.20547294,118.37,118.31,53.00212753]
[1644294947170,52.54180635,118.38,118.31,53.00212753]
[1644294947982,52.79180635,118.38,118.31,53.00212753]
[1644294948181,13.88257294,118.38,118.31,53.00212753]
[1644294948385,1.20547294,118.38,118.31,53.00212753]
[1644294948582,1.20547294,118.38,118.32,23.3798]
[1644294948783,1.20547294,118.38,118.32,36.3058]
[1644294948984,36.98617294,118.39,118.32,36.3058]
[1644294949184,72.57326936,118.39,118.33,35.45408622]
[1644294949585,72.57326936,118.39,118.33,35.70408622]
[1644294949986,49.46856936,118.39,118.33,48.37988622]
[1644294950788,49.71856936,118.39,118.33,48.37988622]
[1644294951387,49.71856936,118.39,118.33,48.12988622]
[1644294951587,1.20547294,118.38,118.33,48.12988622]
[1644294951787,42.49747172,118.37,118.33,48.12988622]
[1644294952190,1.20547294,118.38,118.33,48.12988622]
[1644294953192,41.992556,118.38,118.33,47.12988622]
[1644294954390,41.992556,118.38,118.33,47.37988622]
[1644294954593,41.992556,118.38,118.33,47.12988622]
[1644294954993,1.20547294,118.38,118.33,47.37988622]
[1644294955194,1.20547294,118.38,118.33,55.07431664]
[1644294955394,13.88017294,118.4,118.34,36.0492]
[1644294955595,13.88017294,118.4,118.34,54.7233]
[1644294955596,1.20547294,118.4,118.34,54.7233]
[1644294955795,1.20547294,118.4,118.34,54.9733]
[1644294956094,42.50315837,118.4,118.34,54.9733]
[1644294956297,42.50315837,118.4,118.34,42.7133]
[1644294956597,42.50315837,118.4,118.35,48.75576568]
[1644294956797,1.20547294,118.4,118.35,61.67906568]
[1644294956996,1.20547294,118.4,118.35,67.67906568]
[1644294957797,42.39792826,118.4,118.35,67.67906568]
[1644294958497,42.39792826,118.4,118.35,61.67906568]
[1644294958700,42.39792826,118.4,118.35,12.9233]
[1644294958900,53.86745532,118.4,118.34,23.7892]
[1644294959098,55.07292826,118.4,118.34,24.0392]
[1644294959800,55.07292826,118.4,118.34,63.75652866]
[1644294960299,55.32292826,118.4,118.34,63.75652866]
[1644294961100,14.13047294,118.4,118.34,63.75652866]
[1644294962200,49.36842436,118.4,118.34,63.75652866]
[1644294962605,1.20547294,118.4,118.34,82.43092866]
[1644294962800,15.22746715,118.45,118.35,1.69443042]
[1644294962801,1.20547294,118.42,118.35,1.69443042]
[1644294963003,1.20547294,118.43,118.36,12.26]
[1644294963200,1.20547294,118.43,118.37,24.8523]
[1644294963605,47.35748361,118.42,118.37,45.46833042]
[1644294963801,47.35748361,118.42,118.37,24.8523]
[1644294964202,1.20547294,118.43,118.37,25.1023]
[1644294964402,1.20547294,118.43,118.37,26.79673042]
[1644294964602,1.20547294,118.45,118.38,12.26]
[1644294964802,1.20547294,118.46,118.39,24.3144]
[1644294965003,1.20547294,118.46,118.4,12.26]
[1644294965204,46.93313003,118.46,118.4,60.80326456]
[1644294965802,45.72765709,118.46,118.4,73.46986456]
[1644294967605,45.72765709,118.46,118.4,31.1766]
[1644294969004,45.97765709,118.46,118.4,18.26]
[1644294969208,58.64675709,118.46,118.4,12.26]
[1644294969907,59.85223003,118.46,118.39,24.3144]
[1644294970708,59.85223003,118.46,118.38,24.4764]
[1644294970906,59.85223003,118.46,118.38,30.4764]
[1644294972810,59.85223003,118.46,118.38,30.7264]
[1644294973009,59.85223003,118.46,118.39,38.96997821]
[1644294973210,59.60223003,118.46,118.39,38.96997821]
[1644294973408,46.93313003,118.46,118.39,80.29137821]
[1644294973631,45.72765709,118.46,118.4,1.69443042]
[1644294973810,45.72765709,118.46,118.41,12.6666]
[1644294974012,45.72765709,118.46,118.4,1.69443042]
[1644294974313,46.93313003,118.46,118.35,22.693]
[1644294974509,71.39143003,118.46,118.35,22.693]
[1644294974710,12.6732,118.43,118.35,35.3662]
[1644294975111,49.38020359,118.43,118.36,48.67265272]
[1644294975511,49.38020359,118.43,118.36,54.67265272]
[1644294976217,49.63020359,118.43,118.36,54.67265272]
[1644294977715,49.63020359,118.43,118.36,54.92265272]
[1644294978316,12.9232,118.43,118.36,54.92265272]
[1644294979117,12.6732,118.43,118.36,67.59445272]
[1644294981240,35.75479767,118.42,118.36,67.59445272]
[1644294982139,35.75479767,118.42,118.36,67.34445272]
[1644294982838,12.6732,118.43,118.36,67.34445272]
[1644294983740,51.39502243,118.43,118.36,67.59445272]
[1644294984842,52.60049537,118.43,118.36,67.59445272]
[1644294985743,52.60049537,118.43,118.36,61.59445272]
[1644294986342,52.85049537,118.43,118.36,61.59445272]
[1644294987245,1.45547294,118.43,118.36,63.28888314]
[1644294987643,1.20547294,118.43,118.37,22.7059]
[1644294987843,1.20547294,118.44,118.37,22.9559]
[1644294988044,1.20547294,118.43,118.37,22.7059]
[1644294988243,34.7360884,118.42,118.37,22.7059]
[1644294988443,47.4089884,118.42,118.37,22.7059]
[1644294988745,47.4089884,118.42,118.37,22.9559]
[1644294989644,12.9229,118.42,118.37,22.9559]
[1644294989848,1.20547294,118.43,118.37,22.9559]
[1644294990346,1.20547294,118.44,118.37,30.64573689]
[1644294990745,42.2636424,118.45,118.38,39.24745081]
[1644294990945,42.2636424,118.45,118.38,51.91675081]
[1644294991145,42.2636424,118.45,118.38,52.16675081]
[1644294991546,1.20547294,118.44,118.38,52.16675081]
[1644294993949,1.20547294,118.44,118.38,59.8565877]
[1644294994150,1.20547294,118.45,118.39,12.26]
[1644294994447,1.20547294,118.46,118.4,82.18724497]
[1644294994646,1.61278026,118.47,118.4,100.44724497]
[1644294994846,38.19369614,118.47,118.41,1.68983689]
[1644294995050,39.39916908,118.47,118.41,1.68983689]
[1644294995346,39.39916908,118.47,118.41,14.60623689]
[1644294996648,39.39916908,118.47,118.41,12.9164]
[1644294997153,1.20547294,118.46,118.41,12.9164]
[1644294997351,1.20547294,118.46,118.41,0.25]
[1644294997851,1.20547294,118.46,118.4,35.7378]
[1644294998352,36.38523791,118.45,118.4,23.0695]
[1644294998551,37.59071085,118.45,118.4,22.8195]
[1644294998951,1.20547294,118.44,118.4,22.8195]
[1644294999751,1.20547294,118.44,118.38,12.6705]
[1644294999953,41.36827599,118.43,118.38,12.6705]
[1644295000651,41.36827599,118.43,118.38,12.9205]
[1644295000852,41.36827599,118.43,118.39,40.51418576]
[1644295001053,13.87597294,118.44,118.39,40.51418576]
[1644295001254,14.12597294,118.44,118.39,40.76418576]
[1644295001453,14.12597294,118.44,118.39,0.25]
[1644295002354,14.12597294,118.44,118.38,12.6705]
[1644295002555,46.24543368,118.43,118.38,12.6705]
[1644295002760,46.24543368,118.43,118.39,34.58973737]
[1644295002958,1.20547294,118.44,118.39,47.25953737]
[1644295003255,1.20547294,118.45,118.39,47.25953737]
[1644295003456,1.20547294,118.46,118.39,47.25953737]
[1644295003655,1.20547294,118.46,118.39,47.50953737]
[1644295003955,42.98867256,118.46,118.39,47.50953737]
[1644295004257,41.99619327,118.44,118.39,47.50953737]
[1644295004458,41.77122291,118.44,118.39,47.50953737]
[1644295004857,13.87387294,118.46,118.39,47.50953737]
[1644295005059,13.87387294,118.46,118.39,55.19937426]
[1644295005261,1.20547294,118.46,118.39,55.19937426]
[1644295005664,1.20547294,118.46,118.4,23.1574]
[1644295005863,1.20547294,118.46,118.41,56.89036879]
[1644295006064,79.26037081,118.47,118.41,56.89036879]
[1644295006262,79.26037081,118.47,118.41,57.14036879]
[1644295006662,38.50918026,118.47,118.41,57.14036879]
[1644295006862,25.84188026,118.47,118.41,57.14036879]
[1644295007463,1.20547294,118.46,118.41,56.89036879]
[1644295007663,1.20547294,118.46,118.41,57.14036879]
[1644295007868,41.35606501,118.45,118.41,12.667]
[1644295010068,41.35606501,118.45,118.41,12.917]
[1644295010470,41.35606501,118.45,118.41,56.55765616]
[1644295010670,1.20547294,118.46,118.41,56.55765616]
[1644295011568,1.61278026,118.47,118.41,56.55765616]
[1644295011770,1.61278026,118.47,118.41,64.24749305]
[1644295012170,0.40730732,118.47,118.41,64.24749305]
[1644295012369,1.61278026,118.47,118.41,64.24749305]
[1644295013073,0.40730732,118.47,118.41,64.24749305]
[1644295013470,1.61278026,118.47,118.41,64.24749305]
[1644295013675,39.28406827,118.46,118.41,64.24749305]
[1644295013872,1.61278026,118.47,118.41,64.24749305]
[1644295014076,0.40730732,118.47,118.41,64.24749305]
[1644295014673,0.40730732,118.47,118.43,12.6643]
[1644295014893,0.40730732,118.47,118.43,54.8691299]
[1644295015072,0.40730732,118.47,118.43,55.1191299]
[1644295015873,0.40730732,118.47,118.43,12.9143]
[1644295016075,0.40730732,118.47,118.43,18.9143]
[1644295016274,0.40730732,118.47,118.43,12.9143]
[1644295017574,0.40730732,118.47,118.43,50.15482785]
[1644295018078,0.40730732,118.47,118.43,56.15482785]
[1644295018278,0.40730732,118.47,118.43,57.84466474]
[1644295018477,0.40730732,118.47,118.44,12.26]
[1644295018675,0.40730732,118.47,118.45,12.6617]
[1644295018877,0.40730732,118.47,118.46,3.03219997]
[1644295019077,0.40730732,118.47,118.46,32.54969997]
[1644295019275,0.40730732,118.47,118.46,32.79969997]
[1644295019878,0.40730732,118.47,118.46,32.54969997]
[1644295020278,0.0612106,118.48,118.46,32.54969997]
[1644295020479,0.0612106,118.48,118.46,34.23953686]
[1644295020677,0.0612106,118.48,118.47,15.69349997]
[1644295021079,0.0612106,118.48,118.47,21.69349997]
[1644295021282,0.0612106,118.48,118.47,21.94349997]
[1644295022402,0.0612106,118.48,118.47,70.44147059]
[1644295022782,0.0612106,118.48,118.47,21.94349997]
[1644295025387,0.0612106,118.48,118.47,68.3036695]
[1644295025989,0.0612106,118.48,118.47,21.94349997]
[1644295034216,0.0612106,118.48,118.47,58.53290706]
[1644295035214,0.0612106,118.48,118.47,72.47853458]
[1644295041328,0.08308153,118.48,118.47,72.47853458]
[1644295046333,0.0612106,118.48,118.47,72.47853458]
[1644295047232,0.0012106,118.48,118.47,35.88912749]
[1644295047633,1.20547294,118.56,118.5,12.6532]
[1644295047832,0.1224212,118.56,118.51,12.26]
[1644295048042,0.2448424,118.56,118.52,46.96851737]
[1644295048237,0.2448424,118.56,118.53,12.26]
[1644295048437,0.58468628,118.57,118.53,36.65462752]
[1644295048661,0.19000296,118.57,118.54,12.6513]
[1644295048834,0.19000296,118.57,118.55,22.7464]
[1644295049037,0.19000296,118.57,118.56,3.03219997]
[1644295049234,0.19000296,118.57,118.56,3.28219997]
[1644295050434,0.19000296,118.57,118.56,3.03219997]
[1644295051034,0.19000296,118.57,118.56,3.28219997]
[1644295052035,0.19000296,118.57,118.56,3.03219997]
[1644295052236,0.19000296,118.57,118.56,3.40693846]
[1644295053237,35.67648386,118.57,118.56,3.40693846]
[1644295053436,35.67648386,118.57,118.54,12.179]
[1644295053735,35.67648386,118.57,118.54,12.429]
[1644295054134,0.19000296,118.57,118.54,12.179]
[1644295054336,0.19000296,118.57,118.55,3.40697007]
[1644295054735,0.19000296,118.57,118.55,3.65697007]
[1644295055739,0.19000296,118.57,118.55,3.40697007]
[1644295055940,0.19000296,118.57,118.55,3.65697007]
[1644295056638,0.19000296,118.57,118.55,30.25072347]
[1644295056844,0.19000296,118.57,118.56,40.23795913]
[1644295056845,2.96e-06,118.57,118.56,40.23795913]
[1644295057038,2.96e-06,118.57,118.56,52.49795913]
[1644295057240,2.96e-06,118.57,118.56,20.1912534]
[1644295057641,2.96e-06,118.57,118.56,43.3022534]
[1644295057838,2.96e-06,118.57,118.56,54.2685]
[1644295058439,2.96e-06,118.57,118.56,55.9497534]
[1644295059242,2.96e-06,118.57,118.56,54.2685]
[1644295059444,2.96e-06,118.57,118.56,12.26]
[1644295061146,2.96e-06,118.57,118.56,24.9115]
[1644295062245,2.96e-06,118.57,118.56,32.8427534]
[1644295062644,0.38000296,118.57,118.56,32.8427534]
[1644295062845,0.30038432,118.61,118.57,38.0]
[1644295063048,0.30038432,118.61,118.59,40.42849409]
[1644295063247,0.30038432,118.61,118.6,3.03219997]
[1644295063860,0.30038432,118.61,118.6,3.28219997]
[1644295064061,0.30038432,118.61,118.6,3.03219997]
[1644295064265,0.30038432,118.61,118.57,29.2671]
[1644295064266,0.30038432,118.61,118.57,6.0]
[1644295064465,0.30038432,118.61,118.56,60.8241005]
[1644295064865,0.30038432,118.61,118.56,66.8241005]
[1644295065262,0.30038432,118.61,118.56,68.5053539]
[1644295065662,0.30038432,118.61,118.57,23.3599]
[1644295065865,0.30038432,118.61,118.58,51.85755457]
[1644295066066,0.30038432,118.61,118.59,5.09728215]
[1644295066263,0.02007804,118.6,118.59,5.34728215]
[1644295066463,0.02007804,118.6,118.59,5.09728215]
[1644295066866,0.02007804,118.6,118.59,17.74558215]
[1644295068066,0.02007804,118.6,118.59,17.99558215]
[1644295068465,0.02007804,118.6,118.59,5.34728215]
[1644295069668,0.02007804,118.6,118.59,17.99568215]
[1644295069868,0.02007804,118.6,118.59,66.29097237]
[1644295070067,0.02007804,118.6,118.59,72.29097237]
[1644295070267,0.02007804,118.6,118.59,66.29097237]
[1644295072668,0.02007804,118.6,118.59,17.99568215]
[1644295072869,0.02007804,118.6,118.59,17.74568215]
[1644295073271,0.02007804,118.6,118.54,42.1676]
[1644295073472,0.02007804,118.6,118.56,12.26]
[1644295073671,0.02007804,118.6,118.54,40.04365217]
[1644295074473,0.02007804,118.6,118.55,12.6519]
[1644295074775,0.02007804,118.6,118.55,37.5911]
[1644295074975,0.02007804,118.6,118.55,37.3411]
[1644295075174,0.02007804,118.6,118.56,37.03681795]
[1644295075576,0.02007804,118.6,118.56,49.68851795]
[1644295076275,0.02007804,118.6,118.56,49.93851795]
[1644295077075,0.02007804,118.6,118.56,55.93851795]
[1644295077477,0.02007804,118.6,118.56,68.19851795]
[1644295078277,0.02007804,118.6,118.57,22.9258]
[1644295078477,0.02007804,118.6,118.58,18.71309994]
[1644295078876,0.02007804,118.6,118.59,37.9322081]
[1644295079278,0.02007804,118.6,118.59,38.1822081]
[1644295080279,0.02007804,118.6,118.58,18.71309994]
[1644295080483,0.02007804,118.6,118.58,6.06439994]
[1644295080679,0.02007804,118.6,118.57,22.9258]
[1644295081080,0.02007804,118.6,118.58,3.03219997]
[1644295081281,0.02007804,118.6,118.58,6.06439994]
[1644295081982,0.02007804,118.6,118.58,35.81598791]
[1644295084189,0.02007804,118.6,118.59,3.03219997]
[1644295084590,0.02007804,118.6,118.58,38.84818788]
[1644295086194,0.02007804,118.6,118.58,35.81598791]
[1644295086391,0.02007804,118.6,118.58,48.71548791]
[1644295086793,0.02007804,118.6,118.59,3.03219997]
[1644295086992,0.02007804,118.6,118.59,6.06439994]
[1644295087194,0.02007804,118.6,118.59,6.31439994]
[1644295087898,0.02007804,118.6,118.59,18.96309994]
[1644295090114,0.02007804,118.6,118.59,18.71309994]
[1644295090414,0.02007804,118.6,118.59,14.20255845]
[1644295090614,0.02007804,118.6,118.59,17.23475842]
[1644295091813,0.02007804,118.6,118.59,17.48475842]
[1644295093912,0.02007804,118.6,118.59,41.16665842]
[1644295099322,0.02007804,118.6,118.59,55.09121899]
[1644295099521,0.60079606,118.62,118.59,61.09121899]
[1644295099723,4.1073958,118.66,118.59,61.09121899]
[1644295100125,4.1073958,118.66,118.6,40.29447017]
[1644295100325,4.1073958,118.66,118.61,12.6438]
[1644295100523,4.1073958,118.66,118.62,34.53846697]
[1644295100723,4.1073958,118.66,118.62,34.78846697]
[1644295101329,4.1073958,118.66,118.62,34.53846697]
[1644295101730,4.1073958,118.66,118.62,34.78846697]
[1644295102426,4.1073958,118.66,118.62,34.53846697]
[1644295102826,4.1073958,118.66,118.62,47.18316697]
[1644295103830,4.1073958,118.66,118.62,47.43316697]
[1644295106034,47.94323764,118.71,118.63,1.66456057]
[1644295106236,0.05063688,118.65,118.64,12.6428]
[1644295106432,0.05063688,118.65,118.64,27.93499997]
[1644295106633,0.05063688,118.65,118.64,38.88176051]
[1644295106836,0.00063688,118.65,118.64,38.88176051]
[1644295107735,0.00063688,118.65,118.64,37.21719994]
[1644295108038,0.00063688,118.65,118.64,30.96719994]
[1644295108336,0.00063688,118.65,118.64,15.29219997]
[1644295108737,0.00063688,118.65,118.6,24.133]
[1644295108937,0.00063688,118.65,118.62,12.26]
[1644295109136,0.00063688,118.65,118.63,3.03219997]
[1644295110636,0.00063688,118.65,118.6,23.6098]
[1644295111241,40.82694941,118.69,118.6,23.6098]
[1644295111438,40.82694941,118.69,118.61,36.33101103]
[1644295111938,47.27198996,118.67,118.61,36.33101103]
[1644295112341,47.27198996,118.67,118.6,12.6466]
[1644295112539,47.27198996,118.67,118.58,23.3755]
[1644295112738,47.27198996,118.67,118.57,12.26]
[1644295112939,24.8987,118.66,118.57,12.26]
[1644295113141,12.6502,118.64,118.57,30.9098]
[1644295113339,12.6502,118.64,118.58,39.06635109]
[1644295113743,39.22791935,118.65,118.58,39.06635109]
[1644295114240,51.87681935,118.65,118.57,6.0]
[1644295114443,51.87681935,118.65,118.56,24.3328]
[1644295114641,51.87681935,118.65,118.53,66.56652125]
[1644295114642,51.87681935,118.65,118.53,24.39802125]
[1644295114842,23.0277,118.64,118.54,24.4812]
[1644295115043,23.0277,118.64,118.51,12.26]
[1644295115242,46.03513897,118.63,118.53,44.13219245]
[1644295115443,50.81822572,118.61,118.53,44.13219245]
[1644295115842,51.06822572,118.61,118.53,44.13219245]